Cogmind - Beta 16.1 @@@ ROGUE MODE // 2026.06.20 @ 12:25:23 Player: Lazz Result: Destroyed by S-27 Virus with Autogun Performance ------------- Evolutions (5) 2500 Regions Visited (14) 2800 Robots Destroyed (103) 515 Value Destroyed (4221) 4221 Prototype IDs (3) 60 Alien Tech Used (0) 0 Bonus (834) 834 TOTAL SCORE: 10930 Bonus ------- High Alert Combat Kills 34 Entered DSFs 500 Acquired ECA 300 Cogmind --------- Core Integrity 0/1000 Matter 300/300 Energy 99/100 System Corruption 6% Temperature Cool (0) Movement Core (50) Location -5/Upper Caves Parts ------- > --- POWER (3) -------- (None) > --- PROPULSION (4) --- (None) > --- UTILITY (7) ------ Advanced Targeting Computer Advanced Melee Analysis Suite Improved Target Analyzer > --- WEAPON (3) ------- (None) > --- INVENTORY (5) ---- Encrypted Comm Array Hacking Suite Matter Neutralizer Matter Neutralizer Force Lance Peak State ------------ > --- POWER ------------ Fission Core Antimatter Reactor Antimatter Reactor > --- PROPULSION ------- Improved VSS Leg Improved Airjet Antigrav System Antigrav System > --- UTILITY ---------- Improved Heat Sink Improved Heat Sink High-capacity Storage Unit Improved Sensor Array Improved Signal Interpreter Medium Reactive Plating Hacking Suite > --- WEAPON ----------- Improved EM Pulse Cannon Heavy Phase Cannon Heavy Phase Cannon > --- INVENTORY -------- Heavy Deuterium Engine Heavy Deuterium Engine Heavy Deuterium Engine Flexi-carbon Leg Improved Heat Sink Compact Battery Improved Signal Interpreter Targeting Computer Improved Targeting Computer Weapon Mount Weapon Mount Medium Reactive Plating Medium Reactive Plating Hacking Suite Variable Charge Gun Improved EM Pulse Cannon Advanced Plasma Cannon Plasma Cutter Axe [Rating: 84] Favorites ----------- Power Heavy Deuterium Engine Engine Heavy Deuterium Engine Power Core Fission Core Reactor Antimatter Reactor Propulsion Light Treads Treads Light Treads Leg Flexi-carbon Leg Wheel Compact Wheel Hover Unit Antigrav System Flight Unit Field Propulsion Drive Utility Improved Heat Sink Device Improved Heat Sink Storage High-capacity Storage Unit Processor Improved Targeting Computer Hackware Hacking Suite Protection Medium Reactive Plating Weapon Improved EM Pulse Cannon Energy Gun Spread Laser Energy Cannon Improved EM Pulse Cannon Ballistic Gun Gauss Rifle Launcher Mini Grenade Launcher Slashing Weapon Axe Piercing Weapon Force Lance Build | -11 -10 -10 -9 -9 -8 -7 -7 -6 -6 -5 -5 -5 -5 -5 ------- Run | Yrd Mat Min Mat Min Mat Fac Sto Fac DSF Fac Was Fac Upp Upp Slots Evolved 10 | . . . 2 . 2 2 . 2 . 2 . . . . Power 2 | . . . . . . 1 . . . 1 . . . . Propulsion 2 | . . . 1 . . . . 1 . . . . . . Utility 5 | . . . 1 . 2 1 . 1 . . . . . . Weapon 1 | . . . . . . . . . . 1 . . . . Parts Attached 120 | 8 2 2 15 3 10 1 13 . 10 35 3 5 5 8 Power 20 | 1 . . 5 . 1 . 2 . 2 6 . 1 1 1 Engine 14 | 1 . . 5 . 1 . 2 . 2 2 . . . 1 Core 4 | . . . . . . . . . . 2 . 1 1 . Reactor 2 | . . . . . . . . . . 2 . . . . Propulsion 37 | 2 . 2 2 3 2 . 2 . 4 13 . 2 1 4 Treads 11 | 2 . . . 3 2 . . . . 1 . . . 3 Leg 13 | . . 2 2 . . . . . 4 5 . . . . Wheel 5 | . . . . . . . . . . 4 . 1 . . Hover 5 | . . . . . . . 2 . . 3 . . . . Flight 3 | . . . . . . . . . . . . 1 1 1 Utility 35 | 3 1 . 4 . 5 1 6 . 1 8 2 2 2 . Device 20 | 2 . . . . 3 . 5 . 1 6 . 1 2 . Storage 3 | 1 1 . . . 1 . . . . . . . . . Processor 6 | . . . 1 . . 1 . . . 1 2 1 . . Hackware 1 | . . . 1 . . . . . . . . . . . Protection 5 | . . . 2 . 1 . 1 . . 1 . . . . Artifact . | . . . . . . . . . . . . . . . Weapon 28 | 2 1 . 4 . 2 . 3 . 3 8 1 . 1 3 Energy Gun 7 | 2 . . 3 . . . . . . 1 . . . 1 Energy Cannon 12 | . 1 . . . 2 . 3 . 2 3 . . . 1 Ballistic Gun 6 | . . . 1 . . . . . . 3 . . 1 1 Ballistic Cannon . | . . . . . . . . . . . . . . . Launcher 1 | . . . . . . . . . 1 . . . . . Special Weapon . | . . . . . . . . . . . . . . . Impact Weapon . | . . . . . . . . . . . . . . . Slashing Weapon 1 | . . . . . . . . . . 1 . . . . Piercing Weapon 1 | . . . . . . . . . . . 1 . . . Special Melee Weapon . | . . . . . . . . . . . . . . . Unidentified Prototypes 3 | . . . 1 . . . 1 . . 1 . . . . Corrupted Parts 6 | . . . . . . . 2 . 4 . . . . . System Corruption 41 | . . . . . . . 14 . 27 . . . . . Parts Lost 63 | . . 5 3 . 1 . 7 . 9 18 6 . 1 13 Power 10 | . . 1 . . . . . . 1 4 2 . . 2 Propulsion 22 | . . 2 . . . . 3 . 2 5 2 . 1 7 Utility 13 | . . 1 1 . 1 . 1 . 3 3 1 . . 2 Weapon 18 | . . 1 2 . . . 3 . 3 6 1 . . 2 Highest Loss Streak 8 | . . 3 2 . 1 . 4 . 8 3 3 . 1 8 To Critical Strikes . | . . . . . . . . . . . . . . . Average Backups 12 | 1 3 4 7 9 15 18 19 18 18 15 6 4 5 4 Power 1 | . . . . 1 1 . 2 4 4 2 . . . . Propulsion . | . . . 1 2 . . . . . . . 1 1 . Utility 6 | . 1 2 2 1 5 9 8 9 9 8 4 3 4 2 Weapon 3 | . 1 1 2 4 7 9 6 4 4 2 1 . . 1 Tool/Special . | . . . . . . . . . . . . . . . Unused Backups 23 | . . . . 3 7 . 3 . 1 . 4 . . 5 Power . | . . . . . . . . . . . . . . . Propulsion 1 | . . . . 1 . . . . . . . . . . Utility 11 | . . . . 1 2 . 1 . . . 3 . . 4 Weapon 10 | . . . . 1 5 . 2 . 1 . . . . 1 Tool/Special 1 | . . . . . . . . . . . 1 . . . Average Slot Usage (%) 89 | . 100 90 87 100 99 99 95 80 82 92 67 61 88 55 Engine 8 | . 14 8 8 11 9 15 14 13 11 5 8 . . . Core 2 | . . . . . . . . . . 4 3 2 9 3 Reactor 1 | . . . . . . . . . . 4 . . . . Treads 8 | . 28 24 . 9 27 23 17 . . . . . . 1 Leg 7 | . . 2 28 23 . . . . 9 10 20 11 5 1 Wheel 1 | . . . . . . . . . . 4 . 1 5 1 Hover 1 | . . . . . . . 1 13 7 2 . . . . Device 12 | . 14 12 3 . 14 7 10 13 15 16 6 7 16 7 Storage 6 | . 14 14 11 11 9 7 7 6 6 5 1 . . . Processor 11 | . . . 6 11 9 14 15 13 13 7 20 24 23 22 Hackware 3 | . . . 4 11 9 7 7 6 6 2 . . . . Protection 2 | . . . 3 . 3 7 3 . . 4 1 . . . Energy Gun 4 | . 16 14 17 22 13 . . . . 1 . . . 1 Energy Cannon 9 | . 12 14 2 . 4 15 15 13 9 13 . . . 1 Peak Build Rating 84 | 9 7 8 16 18 34 38 47 47 62 84 73 64 74 74 Average Rating 46 | 5 7 6 12 16 28 37 42 47 49 70 51 48 71 42 On Entrance 33 | . 7 7 8 16 18 33 38 47 47 39 68 37 64 74 Avg Prop Armor Cover (%) 10 | . . . . . . . . . . 4 . 22 11 9 Naked Turns . | . . . . . . . . . . . . . . . Heaviest Build 152 | 15 21 21 26 23 63 70 97 78 81 152 102 28 47 47 Greatest Support 80 | 40 40 40 30 63 63 63 63 18 50 80 80 40 16 40 Greatest Overweight (x) 25 | . . 5 1 . . 1 25 4 8 23 1 1 2 6 Average Overweight (x) 1 | . . . . . . 1 1 4 2 2 . . 1 . Largest Inventory Capacity 20 | 8 10 10 10 10 20 20 20 20 20 20 20 5 5 5 Average Capacity 15 | 7 9 10 10 10 19 20 20 20 20 20 8 5 5 5 Most Carried 20 | 2 5 6 10 10 20 19 20 18 20 19 11 5 5 5 Average Carried 12 | 1 3 4 7 9 15 18 19 18 19 15 6 4 5 4 Final Capacity 20 | 8 10 10 10 10 20 20 20 20 20 20 5 5 5 5 Final Carried 20 | 2 5 6 10 9 20 18 18 18 19 11 5 5 5 5 Class Distribution -------------------- 39% | Mutant 24% | Scavenger-Mutant 18% | Scavenger-Skirmisher 7% | Scavenger-Gunner 6% | Scavenger-Gladiator Dominant Class ---------------- Mutant | -10/Materials Mutant | -10/Mines Scavenger-Mutant | -9/Materials Scavenger-Mutant | -9/Mines Mutant | -8/Materials Mutant | -7/Factory Mutant | -7/Storage Mutant | -6/Factory Scavenger-Mutant | -6/DSF Scavenger-Skirmisher | -5/Factory Scavenger-Mutant | -5/Waste Mutant | -5/Factory Scavenger-Gladiator | -5/Upper Caves Mutant | -5/Upper Caves Resources | -11 -10 -10 -9 -9 -8 -7 -7 -6 -6 -5 -5 -5 -5 -5 ----------- Run | Yrd Mat Min Mat Min Mat Fac Sto Fac DSF Fac Was Fac Upp Upp Matter Collected 1999 | 280 20 30 162 30 95 . 151 . 50 757 . . 276 148 Remotely . | . . . . . . . . . . . . . . . Salvage Created 5094 | 123 60 88 351 24 305 . 1372 . 775 1750 . . 190 56 Parts 260 | 7 7 6 33 7 13 . 58 . 38 78 . . 10 3 Haulers Intercepted 6 | . 1 . 1 . 1 . 2 . . 1 . . . . Recyclers Shooed 1 | 1 . . . . . . . . . . . . . . Parts Field Recycled . | . . . . . . . . . . . . . . . Retrieved Matter . | . . . . . . . . . . . . . . . Parts Self-Destructed 11 | . . . . . . . . . . . . . 9 2 Prevented . | . . . . . . . . . . . . . . . Parts Restored . | . . . . . . . . . . . . . . . Kills | -11 -10 -10 -9 -9 -8 -7 -7 -6 -6 -5 -5 -5 -5 -5 ------- Run | Yrd Mat Min Mat Min Mat Fac Sto Fac DSF Fac Was Fac Upp Upp Combat Hostiles Destroyed 82 | . . 3 10 3 7 . 20 . 13 21 . . 3 2 Melee 6 | . . . . . . . . . . 2 . . 3 1 Guns 24 | . . 2 10 3 6 . . . . 3 . . . . Cannons 36 | . . 1 . . 1 . 13 . 7 14 . . . . AOE 7 | . . . . . . . 4 . 3 . . . . . Classes Destroyed 17 | 2 2 2 3 . 1 . 3 . 2 1 . . 1 . Worker 3 | . . . . . . . 1 . . 2 . . . . Builder 1 | . . . . . . . . . . 1 . . . . Tunneler 2 | 2 . . . . . . . . . . . . . . Hauler 6 | . 1 . 1 . 1 . 2 . . 1 . . . . Recycler 3 | 1 . . . . . . . . . 2 . . . . Operator 2 | . 1 . 1 . . . . . . . . . . . Watcher 4 | . . . . . . . 2 . . 2 . . . . Swarmer 14 | . . . 4 3 . . . . 3 . . . 2 2 Grunt 28 | . . 2 2 . 3 . 12 . 2 7 . . . . Brawler 2 | . . . 1 . . . . . 1 . . . . . Sentry 14 | . . . 3 . 2 . 5 . 1 2 . . 1 . Demolisher 1 | . . 1 . . . . . . . . . . . . Specialist 3 | . . . . . . . . . 3 . . . . . Hunter 8 | . . . . . 2 . 1 . 2 3 . . . . Programmer 11 | . . . . . . . 2 . . 9 . . . . Heavy 1 | . . . . . . . . . 1 . . . . . Samaritan 1 | . . . . . . . . . . . . . 1 . Best Kill Streak 7 | 3 1 2 4 7 3 . 7 . 5 6 . . 2 1 Combat Bots Only 6 | . . 2 3 6 1 . 6 . 5 5 . . 2 1 Max Kills in Single Turn 2 | 1 1 1 2 2 1 . 2 . 2 2 . . 1 1 Gunslinging 1 | . . . 1 1 . . . . . . . . . . Exploded 2 | . . . . . . . 2 . 2 . . . . . Melee 1 | . . . . . . . . . . 1 . . 1 1 Uniques/NPCs Destroyed . | . . . . . . . . . . . . . . . Combat | -11 -10 -10 -9 -9 -8 -7 -7 -6 -6 -5 -5 -5 -5 -5 -------- Run | Yrd Mat Min Mat Min Mat Fac Sto Fac DSF Fac Was Fac Upp Upp Hostile Shots Fired 771 | . . 26 51 7 34 . 168 . 147 178 5 . 17 138 Missed 254 | . . 4 12 2 10 . 52 . 59 54 . . 6 55 Hits 517 | . . 22 39 5 24 . 116 . 88 124 5 . 11 83 Melee 5 | . . . . . . . . . . . 5 . . . Projectile 512 | . . 22 39 5 24 . 116 . 88 124 . . 11 83 AOE 15 | . . 15 . . . . . . . . . . . . Critical Strikes 18 | . . 1 1 . . . 4 . 1 6 1 . . 4 Damage Taken 8344 | . . 769 399 39 366 . 1337 . 1225 2329 217 . 232 1431 Core 1772 | . . 183 74 7 35 . 176 . 288 322 73 . 27 587 Absorbed by Shields 5 | . . . . . . . . . 5 . . . . . Ignored by Resistances 100 | . . . . . . . 52 . . 31 17 . . . Core Remaining (%) 73 | 100 . 26 . 79 93 . 74 . 66 . . . . . Volleys Fired 226 | 5 11 13 26 3 19 . 51 . 28 57 8 . 2 3 Largest 3 | 2 2 2 2 2 2 . 2 . 2 3 2 . 1 3 Hottest 278 | 100 110 110 130 130 138 . 138 . 138 278 56 . 33 221 Shots Fired 461 | 10 22 26 47 6 38 . 102 . 49 134 15 . 2 10 Gun 164 | 10 11 13 39 6 32 . . . . 29 15 . 2 7 Cannon 290 | . 11 13 8 . 6 . 102 . 42 105 . . . 3 Launcher 7 | . . . . . . . . . 7 . . . . . Special . | . . . . . . . . . . . . . . . Kinetic 40 | . . . 4 . . . . . . 16 15 . 2 3 Thermal 248 | 10 22 26 43 6 32 . . . . 102 . . . 7 Explosive 7 | . . . . . . . . . 7 . . . . . Electromagnetic 166 | . . . . . 6 . 102 . 42 16 . . . . Robot Hit Streak 25 | 6 3 5 19 3 12 . 25 . 24 20 13 . 5 14 Robot Miss Streak 11 | 1 3 2 6 11 4 . 2 . 2 5 1 . . . Penetration Max 1 | . . . . . . . . . . . . . . 1 Secondary Targets 3 | . . . 1 1 . . . . . 1 . . . . Max Gunslinging Chain 1 | . . . 1 1 . . . . . 1 . . . . Shots Hit Robots 352 | 6 8 17 33 5 31 . 78 . 39 100 13 . 12 10 Core Hits 219 | 4 4 6 36 6 41 . 38 . 29 47 2 . 4 2 Critical Kills 2 | . . . . . . . . . . 2 . . . . Critical Parts Destroyed . | . . . . . . . . . . . . . . . Critical Strikes 12 | . . 1 . . . . 2 . 1 3 2 . 3 . Burn 1 | . . 1 . . . . . . . . . . . . Meltdown 2 | . . . . . . . . . . 2 . . . . Destroy 2 | . . . . . . . . . . . 2 . . . Corrupt 3 | . . . . . . . 2 . 1 . . . . . Sever 1 | . . . . . . . . . . 1 . . . . Impale 3 | . . . . . . . . . . . . . 3 . Melee Attacks 21 | . . . . . . . . . . 8 . . 10 3 Impact . | . . . . . . . . . . . . . . . Slashing 10 | . . . . . . . . . . 8 . . 2 . Piercing 11 | . . . . . . . . . . . . . 8 3 Sneak Attacks 3 | . . . . . . . . . . 1 . . 2 . Combat Hostiles . | . . . . . . . . . . . . . . . Follow-up Attacks 2 | . . . . . . . . . . . . . 2 . Damage Inflicted 9913 | 75 125 246 505 41 544 . 2083 . 1863 3282 266 . 533 350 Guns 2162 | 75 37 140 470 41 454 . . . . 457 266 . 46 176 Cannons 5723 | . 88 106 35 . 90 . 1785 . 1023 2486 . . . 110 Explosions 1223 | . . . . . . . 297 . 840 86 . . . . Melee 797 | . . . . . . . . . . 253 . . 487 57 Ramming 8 | . . . . . . . 1 . . . . . . 7 Kinetic 746 | . . . 49 . . . . . . 278 266 . 46 107 Thermal 4307 | 75 125 246 456 41 454 . 297 . . 2434 . . . 179 Explosive 926 | . . . . . . . . . 840 86 . . . . Electromagnetic 3129 | . . . . . 90 . 1785 . 1023 231 . . . . Impact . | . . . . . . . . . . . . . . . Slashing 324 | . . . . . . . . . . 253 . . 71 . Piercing 473 | . . . . . . . . . . . . . 416 57 Highest Corruption 27 | . . . . . . . 17 . 27 6 6 6 6 6 Average Corruption 5 | . . . . . . . 6 . 25 2 6 6 6 6 Corruption Purged . | . . . . . . . . . . . . . . . Corruption Blocked . | . . . . . . . . . . . . . . . Effects 81 | . . . . . . . 12 . 9 24 8 5 12 11 Message Errors 16 | . . . . . . . 2 . 1 5 2 1 5 . Matter Fused 24 | . . . . . . . 3 . 3 8 2 1 3 4 Heat Flow Errors 7 | . . . . . . . 1 . 1 3 . . 1 1 Energy Discharges 6 | . . . . . . . 1 . . 1 . 1 2 1 Parts Rejected 7 | . . . . . . . . . 2 3 2 . . . Parts Fused 2 | . . . . . . . . . . 1 . . . 1 Data Loss (minor) 7 | . . . . . . . 2 . . 1 1 1 . 2 Data Loss (major) 4 | . . . . . . . 1 . . 1 1 . 1 . Misfires 3 | . . . . . . . 1 . . 1 . . . 1 Alerts 2 | . . . . . . . . . . . . 1 . 1 Misdirections 1 | . . . . . . . . . 1 . . . . . Weapon Failures 2 | . . . . . . . 1 . 1 . . . . . Overload Shots . | . . . . . . . . . . . . . . . Overflow Damage 191 | . . . . . . . 22 . 20 68 . . 77 4 Projectiles 83 | . . . . . . . 7 . 20 52 . . . 4 Explosions 31 | . . . . . . . 15 . . 16 . . . . Melee 77 | . . . . . . . . . . . . . 77 . Knockbacks . | . . . . . . . . . . . . . . . Impact . | . . . . . . . . . . . . . . . Kinetic . | . . . . . . . . . . . . . . . Secondary . | . . . . . . . . . . . . . . . Self-Inflicted Damage 142 | . . . . . . . 44 . 75 23 . . . . Shots 4 | . . . . . . . 1 . 2 1 . . . . Rammed 3 | . . . . . . . 1 . . . . . . 2 Targets Rammed 3 | . . . . . . . 1 . . . . . . 2 Kicked . | . . . . . . . . . . . . . . . Crushed . | . . . . . . . . . . . . . . . Highest Temperature 791 | 78 156 214 452 189 117 . 387 . 73 791 107 . 98 188 Average Temperature 121 | 35 70 89 120 97 39 . 130 . 41 171 58 . 55 79 Received Heat Transfer 1536 | . . 75 102 . 144 . 438 . 105 252 . . 36 384 Effects 22 | . . . 1 . . . 2 . . 19 . . . . Shutdowns 12 | . . . . . . . 1 . . 11 . . . . Energy Bleed 5 | . . . 1 . . . 1 . . 3 . . . . Matter Decay 3 | . . . . . . . . . . 3 . . . . Damage (minor) 1 | . . . . . . . . . . 1 . . . . Damage (major) 1 | . . . . . . . . . . 1 . . . . Siege Activations . | . . . . . . . . . . . . . . . Martial Activations . | . . . . . . . . . . . . . . . Shielding Activations . | . . . . . . . . . . . . . . . Robots Disrupted . | . . . . . . . . . . . . . . . Combat Hostiles . | . . . . . . . . . . . . . . . Robots Corrupted 6 | . . . . . . . 3 . 3 . . . . . Combat Hostiles 6 | . . . . . . . 3 . 3 . . . . . Parts Fried 20 | . . . . . 1 . 10 . 7 2 . . . . Impact Corruptions . | . . . . . . . . . . . . . . . Robots Melted 2 | . . . . . . . . . . 2 . . . . Combat Hostiles 2 | . . . . . . . . . . 2 . . . . Parts Melted 20 | 2 1 . 1 . 1 . 1 . . 12 . . . 2 Heat Transferred 6021 | 222 296 703 762 50 555 . 300 . . 2911 . . . 222 Parts Sabotaged . | . . . . . . . . . . . . . . . Parts Stolen . | . . . . . . . . . . . . . . . Parts Stripped . | . . . . . . . . . . . . . . . Power Chain Reactions 3 | . . . . . . . 3 . . . . . . . Alert | -11 -10 -10 -9 -9 -8 -7 -7 -6 -6 -5 -5 -5 -5 -5 ------- Run | Yrd Mat Min Mat Min Mat Fac Sto Fac DSF Fac Was Fac Upp Upp Maximum Alert Level 2 | . . . . . . . 1 . 1 2 . . . . Low Security (%) 80 | 100 100 100 100 100 100 100 77 100 61 62 100 100 . . Level 1 17 | . . . . . . . 22 . 38 29 . . . . Level 2 2 | . . . . . . . . . . 7 . . . . Level 3 . | . . . . . . . . . . . . . . . Level 4 . | . . . . . . . . . . . . . . . Level 5 . | . . . . . . . . . . . . . . . High Security . | . . . . . . . . . . . . . . . Max Security . | . . . . . . . . . . . . . . . Sterilizations 1 | . . . . . . . . . 1 . . . . . Peak Influence 423 | 5 30 30 87 104 62 12 273 121 337 423 144 . . . Initial 165 | . . . 4 30 . 12 . 121 84 165 144 . . . Average 86 | . 5 4 34 42 22 3 89 121 186 138 72 . . . Influence Increases 2834 | 15 42 80 280 74 202 . 572 . 323 796 . . 85 365 Destroy 0b10 Robot/C 1640 | . . 60 200 60 140 . 400 . 260 420 . . 60 40 Destroy 0b10 Robot/NC 110 | 15 10 . 10 . 5 . 25 . 5 40 . . . . Destroy Leader 408 | . 2 20 52 10 42 . 108 . 40 114 . . 10 10 Successful Hack 38 | . . . 18 4 . . 12 . . 4 . . . . Disable Machine 75 | . 15 . . . 15 . . . . 45 . . . . Destroy Structure 143 | . . . . . . . 27 . 18 98 . . . . Partial Spotted 15 | . . . . . . . . . . 15 . . . . Lose Combat Pursuer 405 | . 15 . . . . . . . . 60 . . 15 315 Influence Decreases 2674 | 15 42 68 215 151 173 29 303 148 127 700 413 . 85 205 Entered New Map 678 | . . . 8 47 . 17 . 148 37 152 269 . . . Time Decay 1440 | 15 42 58 155 104 166 12 233 . . 376 84 . 85 110 Lost Part 534 | . . 10 30 . 7 . 70 . 90 172 60 . . 95 Purge Threat 22 | . . . 22 . . . . . . . . . . . Squads Dispatched 19 | . 1 . . . 2 . 4 . 2 9 . 1 . . Investigation 2 | . . . . . 1 . . . . 1 . . . . Extermination 6 | . . . . . . . 2 . . 4 . . . . Reinforcement 8 | . 1 . . . 1 . 2 . 2 1 . 1 . . Assault . | . . . . . . . . . . . . . . . Garrison 3 | . . . . . . . . . . 3 . . . . Intercept . | . . . . . . . . . . . . . . . Searches Triggered . | . . . . . . . . . . . . . . . Construction Impeded 1 | . . . . . . . . . . 1 . . . . Haulers Reinforced 1 | . . . . . . . 1 . . . . . . . Active Scanning Responses . | . . . . . . . . . . . . . . . Cargo Convoy Interrupts . | . . . . . . . . . . . . . . . Stealth | -11 -10 -10 -9 -9 -8 -7 -7 -6 -6 -5 -5 -5 -5 -5 --------- Run | Yrd Mat Min Mat Min Mat Fac Sto Fac DSF Fac Was Fac Upp Upp Distress Signals 5 | . 1 . 1 . . . 2 . . 1 . . . . Communications Jammed . | . . . . . . . . . . . . . . . Distress Signals . | . . . . . . . . . . . . . . . Times Spotted 139 | . 4 4 12 3 8 . 26 . 15 29 6 . 5 27 Peak Tracking Total 8 | . 3 2 4 3 2 . 6 . 4 5 6 . 4 8 Tactical Retreats 13 | . 1 . . . . . . . . 2 1 . 1 8 Traps | -11 -10 -10 -9 -9 -8 -7 -7 -6 -6 -5 -5 -5 -5 -5 ------- Run | Yrd Mat Min Mat Min Mat Fac Sto Fac DSF Fac Was Fac Upp Upp Traps Triggered 8 | . . . . . 1 . 2 . 2 3 . . . . Indirectly . | . . . . . . . . . . . . . . . Trap Hack Attempts . | . . . . . . . . . . . . . . . Triggered . | . . . . . . . . . . . . . . . Disarmed . | . . . . . . . . . . . . . . . Reprogrammed . | . . . . . . . . . . . . . . . Reused . | . . . . . . . . . . . . . . . Traps Extracted . | . . . . . . . . . . . . . . . Installed . | . . . . . . . . . . . . . . . Triggered . | . . . . . . . . . . . . . . . Machines | -11 -10 -10 -9 -9 -8 -7 -7 -6 -6 -5 -5 -5 -5 -5 ---------- Run | Yrd Mat Min Mat Min Mat Fac Sto Fac DSF Fac Was Fac Upp Upp Machines Disabled 5 | . 1 . . . 1 . . . . 3 . . . . Max in Single Turn 2 | . 1 . . . 1 . . . . 2 . . . . Machines Repaired . | . . . . . . . . . . . . . . . Machines Dismantled . | . . . . . . . . . . . . . . . Machines Sabotaged . | . . . . . . . . . . . . . . . Overloaded Fab Kills . | . . . . . . . . . . . . . . . Hacking | -11 -10 -10 -9 -9 -8 -7 -7 -6 -6 -5 -5 -5 -5 -5 --------- Run | Yrd Mat Min Mat Min Mat Fac Sto Fac DSF Fac Was Fac Upp Upp Machines Accessed 17 | . . . 2 2 1 . 5 1 . 4 . 1 . 1 Terminals 15 | . . . 2 1 1 . 5 1 . 4 . 1 . . Fabricators . | . . . . . . . . . . . . . . . Repair Stations . | . . . . . . . . . . . . . . . Recycling Units . | . . . . . . . . . . . . . . . Scanalyzers . | . . . . . . . . . . . . . . . Garrison Access . | . . . . . . . . . . . . . . . Total Hacks 33 | . . . 10 6 1 . 8 1 . 5 . 1 . 1 Successful 18 | . . . 6 3 . . 5 1 . 2 . . . 1 Failed 15 | . . . 4 3 1 . 3 . . 3 . 1 . . Catastrophic 5 | . . . 1 . 1 . . . . 2 . 1 . . Database Lockouts . | . . . . . . . . . . . . . . . Manual 13 | . . . 5 4 1 . 2 . . . . 1 . . Terminals 31 | . . . 10 5 1 . 8 1 . 5 . 1 . . Fabricators . | . . . . . . . . . . . . . . . Repair Stations . | . . . . . . . . . . . . . . . Recycling Units . | . . . . . . . . . . . . . . . Scanalyzers . | . . . . . . . . . . . . . . . Garrison Access . | . . . . . . . . . . . . . . . Terminal Hacks 18 | . . . 6 3 . . 5 1 . 2 . . . 1 Part Schematic 1 | . . . 1 . . . . . . . . . . . Robot Analysis 6 | . . . 4 1 . . 1 . . . . . . . Open Door 6 | . . . . 1 . . 4 . . . . . . 1 Open DSF 3 | . . . . . . . . 1 . 2 . . . . Unreport Threat 1 | . . . 1 . . . . . . . . . . . Zone Layout 1 | . . . . 1 . . . . . . . . . . Fabricator Hacks . | . . . . . . . . . . . . . . . Repair Station Hacks . | . . . . . . . . . . . . . . . Recycling Unit Hacks . | . . . . . . . . . . . . . . . Scanalyzer . | . . . . . . . . . . . . . . . Garrison Access Hacks . | . . . . . . . . . . . . . . . Unauthorized Hacks . | . . . . . . . . . . . . . . . Terminals . | . . . . . . . . . . . . . . . Fabricators . | . . . . . . . . . . . . . . . Repair Stations . | . . . . . . . . . . . . . . . Recycling Units . | . . . . . . . . . . . . . . . Scanalyzers . | . . . . . . . . . . . . . . . Garrison Access . | . . . . . . . . . . . . . . . Data Cores Recovered 1 | . . . 1 . . . . . . . . . . . Used . | . . . . . . . . . . . . . . . Hacking Detections 11 | . . . 2 1 1 . 3 . . 3 . 1 . . Full Trace Events 1 | . . . . . . . . . . 1 . . . . Feedback Events . | . . . . . . . . . . . . . . . Feedback Blocked . | . . . . . . . . . . . . . . . Robot Schematics Acquired . | . . . . . . . . . . . . . . . Robots Built . | . . . . . . . . . . . . . . . Authchips . | . . . . . . . . . . . . . . . Time . | . . . . . . . . . . . . . . . Total Robot Build Rating . | . . . . . . . . . . . . . . . Part Schematics Acquired 1 | . . . 1 . . . . . . . . . . . Parts Built . | . . . . . . . . . . . . . . . Authchips . | . . . . . . . . . . . . . . . Time . | . . . . . . . . . . . . . . . Total Part Build Rating . | . . . . . . . . . . . . . . . Part Studies Acquired . | . . . . . . . . . . . . . . . Parts Repaired . | . . . . . . . . . . . . . . . Time . | . . . . . . . . . . . . . . . Parts Recycled . | . . . . . . . . . . . . . . . Recycled Matter . | . . . . . . . . . . . . . . . Retrieved Matter . | . . . . . . . . . . . . . . . Retrieved Components . | . . . . . . . . . . . . . . . Parts Scanalyzed . | . . . . . . . . . . . . . . . Part Schematics Acquired . | . . . . . . . . . . . . . . . Parts Damaged . | . . . . . . . . . . . . . . . Bothacking | -11 -10 -10 -9 -9 -8 -7 -7 -6 -6 -5 -5 -5 -5 -5 ------------ Run | Yrd Mat Min Mat Min Mat Fac Sto Fac DSF Fac Was Fac Upp Upp Used RIF Installer . | . . . . . . . . . . . . . . . Robots Hacked . | . . . . . . . . . . . . . . . Non-combat . | . . . . . . . . . . . . . . . Combat . | . . . . . . . . . . . . . . . Robot Hacks Applied . | . . . . . . . . . . . . . . . Relay Couplers Released . | . . . . . . . . . . . . . . . Fabnet Peak Effective % . | . . . . . . . . . . . . . . . Robots Rewired . | . . . . . . . . . . . . . . . Allies Hacked . | . . . . . . . . . . . . . . . Hacks Repelled . | . . . . . . . . . . . . . . . Allies | -11 -10 -10 -9 -9 -8 -7 -7 -6 -6 -5 -5 -5 -5 -5 -------- Run | Yrd Mat Min Mat Min Mat Fac Sto Fac DSF Fac Was Fac Upp Upp Total Allies . | . . . . . . . . . . . . . . . Largest Group . | . . . . . . . . . . . . . . . Highest-Rated Group . | . . . . . . . . . . . . . . . Highest-Rated Ally . | . . . . . . . . . . . . . . . Initial Warlord ECA Mod 9 | . . . . . . . . . . 9 9 9 9 9 Total Orders . | . . . . . . . . . . . . . . . Ally Attacks . | . . . . . . . . . . . . . . . Total Damage . | . . . . . . . . . . . . . . . Kills . | . . . . . . . . . . . . . . . Allies Corrupted . | . . . . . . . . . . . . . . . Allies Melted . | . . . . . . . . . . . . . . . Intel | -11 -10 -10 -9 -9 -8 -7 -7 -6 -6 -5 -5 -5 -5 -5 ------- Run | Yrd Mat Min Mat Min Mat Fac Sto Fac DSF Fac Was Fac Upp Upp Active Infowar (turns) 2697 | 17 206 350 102 . . . 316 . . 1561 . 77 68 . Sensors 1877 | . . . . . . . 316 . . 1561 . . . . Terrain 227 | 4 . 121 102 . . . . . . . . . . . Seismic 448 | 13 206 229 . . . . . . . . . . . . Jamming 145 | . . . . . . . . . . . . 77 68 . Robot Analysis Total 6 | . . . 4 1 . . 1 . . . . . . . Derelict Logs Recovered 5 | . . 2 . . . . . . . . . . 2 1 Drone Launches . | . . . . . . . . . . . . . . . Drone Recoveries . | . . . . . . . . . . . . . . . Exploration | -11 -10 -10 -9 -9 -8 -7 -7 -6 -6 -5 -5 -5 -5 -5 ------------- Run | Yrd Mat Min Mat Min Mat Fac Sto Fac DSF Fac Was Fac Upp Upp Turns Passed 6773 | 98 206 400 370 268 531 82 1234 6 313 2154 182 188 433 308 Spaces Moved 2959 | 44 99 193 169 191 253 34 342 3 82 679 115 151 295 309 Core 162 | 1 . 1 . . . . 3 . . 1 . . . 156 Treads 1021 | 43 99 181 . 45 253 34 301 . . 31 . . . 34 Legs 913 | . . 11 169 146 . . . . 42 320 115 110 . . Wheels 711 | . . . . . . . . . . 307 . 41 295 68 Hover 101 | . . . . . . . 38 3 40 20 . . . . Flight 51 | . . . . . . . . . . . . . . 51 Fastest Speed 35 | 50 160 120 120 120 160 240 240 296 180 108 120 115 115 35 Average Speed 169 | 157 160 158 125 129 160 240 270 296 247 210 125 118 128 84 Slowest Speed 1300 | 160 160 300 190 160 160 240 1300 296 540 1200 190 120 130 515 Overloaded Moves . | . . . . . . . . . . . . . . . Propulsion Burnouts . | . . . . . . . . . . . . . . . Robots Hopped . | . . . . . . . . . . . . . . . Potential Cave-ins . | . . . . . . . . . . . . . . . Cave-ins Triggered . | . . . . . . . . . . . . . . . Exploration Rate (%) 33 | 3 26 41 15 45 23 1 48 . 83 19 74 3 39 42 Regions Visited 14 Branch Regions 5 Pre-discovered Areas 3 | . . 1 . . . . . . . . . . 2 . Known Exits Taken 6 | . . 1 . . . 1 1 1 . . . 1 1 . Unknown Exits Taken 5 | 1 1 . 1 1 1 . . . . . . . . . Scrap Searched 2 | . . . . 1 . . . . . . . . . 1 Spaces Dug 1 | . . . . . . . . . . 1 . . . . Terrain Destroyed 101 | . . . . . . . 26 . 27 44 . . 2 2 Melee 1 | . . . . . . . . . . 1 . . . . Projectile 24 | . . . . . . . . . . 20 . . 2 2 AOE 76 | . . . . . . . 26 . 27 23 . . . . Terrain Rammed . | . . . . . . . . . . . . . . . Walls Destroyed . | . . . . . . . . . . . . . . . Machines Disabled . | . . . . . . . . . . . . . . . Actions | -11 -10 -10 -9 -9 -8 -7 -7 -6 -6 -5 -5 -5 -5 -5 --------- Run | Yrd Mat Min Mat Min Mat Fac Sto Fac DSF Fac Was Fac Upp Upp Total 4223 | 59 124 259 281 209 346 35 539 2 139 1268 135 157 325 345 Wait 728 | 1 9 47 50 . 26 . 119 . 1 452 2 . 14 7 Move 2946 | 43 98 192 168 190 252 33 341 2 81 679 114 150 294 309 Hop . | . . . . . . . . . . . . . . . Pick Up 70 | 2 3 3 9 6 23 . 6 . 5 9 1 1 . 2 Fast Attach 71 | 7 . 2 5 . 2 . 4 . 5 22 7 5 5 7 Attach 44 | . . 2 5 3 3 2 5 . 3 18 1 1 . 1 Detach 6 | . . . 4 . . . . . . . . . . 2 Swap 38 | 1 2 . 6 . 5 . 5 . 5 14 . . . . Drop 62 | . 1 . 8 7 16 . 7 . 1 9 2 . 2 9 Fire 226 | 5 11 13 26 3 19 . 51 . 28 57 8 . 2 3 Melee 19 | . . . . . . . . . . 8 . . 8 3 Ram 1 | . . . . . . . 1 . . . . . . . Kick . | . . . . . . . . . . . . . . . Crush 2 | . . . . . . . . . . . . . . 2 Escape Stasis 10 | . . . . . . . . . 10 . . . . . Rewire . | . . . . . . . . . . . . . . . Trap . | . . . . . . . . . . . . . . . Miscellaneous . | . . . . . . . . . . . . . . . Route ------- -11/Scrapyard -10/Materials -10/Mines -9/Materials -9/Mines -8/Materials -7/Factory -7/Storage -6/Factory -6/DSF -5/Factory -5/Waste -5/Factory -5/Upper Caves -5/Upper Caves History --------- Turn | Location | Event 12 | -11/Scrapyard | Discovered new exit (range 16) 99 | -11/Scrapyard | Entered Materials 273 | -10/Materials | Discovered new exit (range 9) 305 | -10/Materials | Entered Mines 310 | -10/Mines | Build established: Mutant 438 | -10/Mines | Learned location of Storage (-7) 507 | -10/Mines | Assembled infested the area 533 | -10/Mines | Core integrity fell below 50% 548 | -10/Mines | Identified exit to Materials 567 | -10/Mines | Lost 3 parts (1p1u1w) 705 | -10/Mines | Entered Materials 705 | -9/Materials | Evolved 2 slots: Propulsion x1, Utility x1 990 | -9/Materials | Build established: Scavenger-Mutant 1038 | -9/Materials | Discovered new exit (range 8) 1075 | -9/Materials | Entered Mines 1135 | -9/Mines | A weapon hastily lodged in a ceiling crevice suddenly fell to the ground 1256 | -9/Mines | Met a Derelict who couldn't figure out how to use a Trap Extractor 1330 | -9/Mines | Discovered new exit (range 9) 1343 | -9/Mines | Entered Materials 1343 | -8/Materials | Evolved 2 slots: Utility x2 1676 | -8/Materials | Build established: Mutant 1847 | -8/Materials | Discovered new exit (range 8) 1874 | -8/Materials | Entered Factory 1874 | -7/Factory | Evolved 2 slots: Power x1, Utility x1 1876 | -7/Factory | Discovered new exit (range 6) 1888 | -7/Factory | Identified exit to Storage 1956 | -7/Factory | Entered Storage 3032 | -7/Storage | Lost 4 parts (2n2w) 3061 | -7/Storage | System corruption reached 10% 3175 | -7/Storage | Discovered new exit (range 4) 3184 | -7/Storage | Identified exit to Factory 3190 | -7/Storage | Entered Factory 3190 | -6/Factory | Evolved 2 slots: Propulsion x1, Utility x1 3196 | -6/Factory | Identified exit to DSF 3196 | -6/Factory | Entered DSF 3239 | -6/DSF | Additional patrols routed to DSF 3353 | -6/DSF | System corruption reached 10% 3399 | -6/DSF | Build established: Scavenger-Mutant 3442 | -6/DSF | Sterilization system engaged 3462 | -6/DSF | Ambient heat levels rising (+10) 3474 | -6/DSF | Discovered new exit (range 14) 3477 | -6/DSF | Ambient heat levels rising (+10) 3492 | -6/DSF | Ambient heat levels rising (+10) 3507 | -6/DSF | Ambient heat levels rising (+10) 3507 | -6/DSF | Identified exit to Factory 3509 | -6/DSF | Entered Factory 3509 | -5/Factory | Evolved 2 slots: Power x1, Weapon x1 3511 | -5/Factory | Lost 8 parts (1p1n3u3w) 3915 | -5/Factory | Build established: Scavenger-Skirmisher 4727 | -5/Factory | Garrison activated, responded to threat 5480 | -5/Factory | Lost 3 parts (1p1n1w) 5575 | -5/Factory | Lost 3 parts (2u1w) 5663 | -5/Factory | Sucked down chute 5663 | -5/Factory | Entered Waste 5675 | -5/Waste | Spotted C-40 Crusher 5699 | -5/Waste | Crushed by Compactor (1 part destroyed, 1 dropped) 5700 | -5/Waste | Spotted C-40 Crusher 5705 | -5/Waste | Crushed by Compactor (1 part destroyed, 1 dropped) 5736 | -5/Waste | Lost 3 parts (1n1u1w) 5738 | -5/Waste | Spotted C-40 Crusher 5740 | -5/Waste | Spotted C-40 Crusher 5761 | -5/Waste | Spotted C-40 Crusher 5767 | -5/Waste | Spotted C-40 Crusher 5775 | -5/Waste | Crushed by Compactor (1 part destroyed, 1 dropped) 5820 | -5/Waste | Crushed by Compactor (1 part destroyed, 2 dropped) 5823 | -5/Waste | Crushed by Compactor (1 part destroyed, 1 dropped) 5829 | -5/Waste | Discovered new exit (range 10) 5844 | -5/Waste | Identified exit to Factory 5845 | -5/Waste | Entered Factory 5992 | -5/Factory | Discovered new exit (range 15) 6028 | -5/Factory | Identified exit to Upper Caves 6033 | -5/Factory | Entered Upper Caves 6058 | -5/Upper Caves | Attracted the attention of an 0b10 checkpoint 6092 | -5/Upper Caves | Met a Warlord Commander 6093 | -5/Upper Caves | Learned location of Warlord (-5) 6094 | -5/Upper Caves | Warlord Commander delivered Encrypted Comm Array 6098 | -5/Upper Caves | Found Encrypted Comm Array 6276 | -5/Upper Caves | Identified exit to Upper Caves 6291 | -5/Upper Caves | Learned location of Armory (-3) 6351 | -5/Upper Caves | Encountered a Warlord checkpoint 6391 | -5/Upper Caves | Build established: Scavenger-Gladiator 6466 | -5/Upper Caves | Entered another Upper Caves area 6564 | -5/Upper Caves | Core integrity fell below 50% 6600 | -5/Upper Caves | Lost 8 parts (2p3n1u2w) 6666 | -5/Upper Caves | Learned Factory stockpile data 6681 | -5/Upper Caves | Encountered a Warlord checkpoint 6726 | -5/Upper Caves | Attracted the attention of an 0b10 checkpoint 6732 | -5/Upper Caves | Core integrity fell below 20% 6734 | -5/Upper Caves | Lost 3 allies 6774 | -5/Upper Caves | Destroyed by S-27 Virus with Autogun Last Messages --------------- 06685_ ME-KAS(b) destroyed. 06687_ Acquired Lgt. Treads. 06693_ Acquired Imp. Deuterium Engine. 06695_ Acquired 59 matter. 06697_ L2-FUV(M) destroyed. 06703_ MS-IBI(b) destroyed. 06709_ Lgt. Treads destroyed. 06710_ System corrupted: Imp. Deuterium Engine fused. 06711_ Dropped Lgt. Treads. 06711_ Discarded Imp. Deuterium Engine. 06725_ Imp. Targeting Computer destroyed. 06725_ Slug penetrates Wall. 06726_ Y-64 Sentinel: "INTERCEPTING UNREGISTERED DERELICT." 06731_ System corrupted: Energy discharge (-25). 06733_ Critical hit (Burn: +37). 06749_ System corrupted: Component data lost. 06761_ G-67 Veteran suffers critical hit (Burn). 06772_ S-27 Virus destroyed. Map ----- +----------------------------------------------------+ | ????????????????????????# ## #???????## #?# | | ????????????????????????## ### #??????## ### | | ?????????????????????????#####??# ####???# ## | | ????????????????????????????????# #???# | | ????????????????????????????????### #?#### | | ??????????????????????????????????# ## #?## | | ?????????????????????????????????## #??# | | ????????????????????????????????## #??# | | ????????????????????????????????# #### ## | | ????????????????????????????????# ## #### | | ????????????????????????????????# ######??# | | ??????????????????????? ?????## ##??????# | | ???????????????????????? ?????# ##????## | | ???????????????????????? #????# ### #????# | | ????????????????????????? ##??####?## ####### | | ????????????????????????? ##???????# ## =%* | | ?????????????????????????# #?###???# ## / | | | ?????????????????????????? #?# ##??# ## | | ??????????????????????????# ### #### ##? | | ??????????????????????????# ## ###?? | | ???????????????????????#### ## ##???# | | ???????????????????????# ### ####????# | | ???????????????????????# ## # #???????? | | ???????????????????????# # ### #??????? | | ??????????????????????## s #?# ???? | | ??????????????????##### @* #? #? | | ??????????????##### ## =%= #?# ?? | | ?????????????## ## #### ? | | ?????????????# ### #??# ## ? | | ?????????????## ##?# ##??####?# ##? | | ??????????????## ## ##??# ####?????###?? | | ???????????????##?#####???# ##???###??? | | ??????????????????????????## ## ##### #??? | | ???????????????????????????# ### !! #??? | | ???????????????????????????## #?# ##?? | | ????????????????????????????## ### | | ???????????????????????????# ## ### ## | | ???????????????????????????## ######## #?# | | ????????????????????????????# ???????## #?## | | ???????????????????????????? ????????# #??# # | | ???????????????????????????? ????????? #??# ### | | ??????????????????????????? ????????? #??# #?? | | ????????????????????????????????????? #??# #?? | | ????????????????????????????????????? #??# #?? | | ????????????????????????????????????## #??# #?? | | ?????????????????????????????????????## #??# #?? | | ???????????????????????????????????????###?? #?? | | ???????????????????????????????????????????? ?? | | ???????????????????????????????????????????? ?? | | ??????????????????????????????????????????? ?? | +----------------------------------------------------+ Best States ------------- Heat Dissipation 99 Energy Generation 50 Energy Capacity 760 Matter Stores 300 Matter Capacity 300 Sight Range 16 Robot Scan Range 15 Terrain Scan Range 16 Terrain Scan Density 10 Jamming Range 14 Armor Coverage 450 Resistance: KI 30 Power Shielding 33 Evasion (%) 60 Targeting Accuracy 34 Melee Accuracy 8 Target Analysis 6 Recoil Reduction 3 Energy Filtering 30 Particle Charging 15 Offensive Hacking 10 Item Schematics ----------------- Rocket Launcher | -9/Materials | Hacked Robot Schematics ------------------ None Fabricated ------------ Nothing Repaired ---------- Nothing Studied --------- None Alien Tech Used ----------------- None Achievements -------------- None Challenges ------------ None Game ------ Seed StormCatalystDriver Manual? 0 Play Time 00:54:12 Cumulative 207.6 hours Start 2026.06.20 @ 11:32:52 End 2026.06.20 @ 12:25:23 Sessions 1 Manual Loads 0 Difficulty Rogue Special Mode None Game No. 287 Rogue 287 Adventurer 0 Explorer 0 Win Type - Total 2 Types 1/0/0/1/0/0/0/0/0/0 Lore% 73 Gallery% 62 Achievement% 49 Wizard Run 0 Options --------- Layout 2 ASCII 0 Keyboard 0 Movement Mouse Keybinds 0 Fullscreen 1 Font 24/Smallcaps Map View 50x44 Zoom Use 0% Tactical HUD 1 Map Filters NONE Filters NONE Steam 1 RUN: 9305c781-68d8-4bb1-ac37-e7c792038856